[Event "Kwalificatie NJK B Groningen"]
[Site "Hoogkerk, Netherlands"]
[Date "2023.02.18"]
[Round "1.7"]
[White "Niemeijer, LÃ©on"]
[Black "Winter, Sven"]
[Result "1-0"]
[TimeControl "55 min. + 10 sec./zet"]
[WhiteElo "1860"]
[BlackElo "1535"]

1. d4 {[%clk 00:55:14]} d6 {[%clk 00:54:57]} {[%emt 00:00:29]} 2. Nf3 {[%clk
00:55:13]} Nf6 {[%clk 00:54:28]} {[%emt 00:00:56]} 3. g3 {[%clk 00:54:55]}
{[%emt 00:00:13]} g6 {[%clk 00:53:30]} {[%emt 00:01:04]} 4. Bg2 {[%clk
00:54:41]} {[%emt 00:00:21]} Bg7 {[%clk 00:52:39]} {[%emt 00:01:01]} 5. O-O
{[%clk 00:54:37]} {[%emt 00:00:37]} O-O {[%clk 00:51:57]} {[%emt 00:01:07]} 6.
c4 {[%clk 00:54:28]} {[%emt 00:00:08]} c6 {[%clk 00:50:36]} {[%emt 00:01:08]} 7.
Nc3 {[%clk 00:54:18]} {[%emt 00:00:17]} d5 {[%clk 00:49:49]} {[%emt 00:00:57]}
8. cxd5 {[%clk 00:53:46]} {[%emt 00:00:45]} cxd5 {[%clk 00:49:03]} {[%emt
00:00:53]} 9. Qb3 {[%clk 00:49:14]} {[%emt 00:04:58]} e6 {[%clk 00:46:55]}
{[%emt 00:02:06]} 10. Bg5 {[%clk 00:46:58]} {[%emt 00:02:22]} h6 {[%clk
00:45:46]} {[%emt 00:01:20]} 11. Bxf6 {[%clk 00:46:51]} {[%emt 00:00:17]} Bxf6
{[%clk 00:44:43]} {[%emt 00:01:43]} 12. e4 {[%clk 00:39:35]} {[%emt 00:07:24]}
dxe4 {[%clk 00:42:32]} {[%emt 00:01:52]} 13. Nxe4 {[%clk 00:39:42]} {[%emt
00:00:57]} Bg7 {[%clk 00:41:42]} {[%emt 00:00:55]} 14. Rfd1 {[%clk 00:38:12]}
{[%emt 00:00:59]} Nc6 {[%clk 00:40:07]} {[%emt 00:01:37]} 15. Qc3 {[%clk
00:35:49]} {[%emt 00:03:32]} f5 {[%clk 00:35:54]} {[%emt 00:03:25]} 16. Nc5
{[%clk 00:35:07]} {[%emt 00:01:19]} b6 {[%clk 00:32:46]} {[%emt 00:02:51]} 17.
Nxe6 {[%clk 00:32:47]} {[%emt 00:02:29]} Bxe6 {[%clk 00:30:29]} {[%emt
00:02:29]} 18. Qxc6 {[%clk 00:31:53]} {[%emt 00:01:02]} Rf6 {[%clk 00:27:09]}
{[%emt 00:03:31]} 19. Ng5 {[%clk 00:26:45]} {[%emt 00:05:53]} Bb3 {[%clk
00:22:59]} {[%emt 00:03:45]} 20. Qxa8 {[%clk 00:25:44]} {[%emt 00:01:31]} Qxa8
{[%clk 00:22:27]} {[%emt 00:00:21]} 21. Bxa8 {[%clk 00:25:49]} {[%emt
00:00:14]} Bxd1 {[%clk 00:22:09]} {[%emt 00:01:12]} 22. Bd5+ {[%clk 00:25:49]}
Kh8 {[%clk 00:19:37]} {[%emt 00:02:12]} 23. Nf7+ {[%clk 00:25:53]} {[%emt
00:00:05]} Kh7 {[%clk 00:18:49]} {[%emt 00:00:46]} 24. Rxd1 {[%clk 00:25:45]}
{[%emt 00:00:45]} f4 {[%clk 00:18:06]} {[%emt 00:00:25]} 25. Bb3 {[%clk
00:24:13]} {[%emt 00:01:47]} a5 {[%clk 00:16:08]} {[%emt 00:02:36]} 26. a4
{[%clk 00:23:40]} {[%emt 00:00:21]} g5 {[%clk 00:14:48]} {[%emt 00:01:23]} 27.
Ne5 {[%clk 00:22:51]} {[%emt 00:01:28]} Rd6 {[%clk 00:13:40]} {[%emt 00:01:15]}
28. Nc4 {[%clk 00:22:26]} {[%emt 00:00:19]} Rxd4 {[%clk 00:13:03]} {[%emt
00:00:52]} 29. Rxd4 {[%clk 00:22:26]} {[%emt 00:00:09]} Bxd4 {[%clk 00:13:07]}
30. Bc2+ {[%clk 00:22:25]} {[%emt 00:00:13]} Kg7 {[%clk 00:12:57]} {[%emt
00:00:14]} 31. gxf4 {[%clk 00:22:20]} {[%emt 00:00:17]} gxf4 {[%clk 00:12:42]}
{[%emt 00:00:17]} 32. Kg2 {[%clk 00:22:15]} {[%emt 00:00:21]} Kf6 {[%clk
00:12:03]} {[%emt 00:00:41]} 33. h4 {[%clk 00:21:53]} {[%emt 00:01:09]} Ke6
{[%clk 00:11:27]} {[%emt 00:00:11]} 34. Be4 {[%clk 00:21:22]} {[%emt 00:00:59]}
Bc5 {[%clk 00:09:23]} {[%emt 00:02:04]} 35. f3 {[%clk 00:20:21]} {[%emt
00:01:23]} Kf6 {[%clk 00:08:46]} {[%emt 00:00:30]} 36. b3 {[%clk 00:19:10]}
{[%emt 00:01:52]} Bd4 {[%clk 00:08:15]} {[%emt 00:00:04]} 37. Kh3 {[%clk
00:16:44]} {[%emt 00:03:11]} h5 {[%clk 00:07:43]} {[%emt 00:00:19]} 38. Kg2
{[%clk 00:16:48]} {[%emt 00:00:16]} Bc5 {[%clk 00:07:12]} {[%emt 00:00:32]} 39.
Kf1 {[%clk 00:16:40]} {[%emt 00:00:24]} Bd4 {[%clk 00:06:46]} {[%emt 00:00:17]}
40. Kg2 {[%clk 00:14:13]} {[%emt 00:02:41]} Bc5 {[%clk 00:06:30]} {[%emt
00:01:17]} 41. Nb2 {[%clk 00:14:16]} Bd4 {[%clk 00:06:05]} 42. Nd3 {[%clk
00:14:17]} Be3 {[%clk 00:05:30]} {[%emt 00:00:45]} 43. Kf1 {[%clk 00:14:17]}
{[%emt 00:00:06]} Kg7 {[%clk 00:05:09]} {[%emt 00:00:32]} 44. Ke2 {[%clk
00:14:07]} {[%emt 00:01:09]} Kh6 {[%clk 00:05:01]} 45. Ne1 {[%clk 00:13:11]}
{[%emt 00:00:55]} Bg1 {[%clk 00:04:54]} {[%emt 00:00:09]} 46. Ng2 {[%clk
00:13:01]} {[%emt 00:00:47]} Bh2 {[%clk 00:04:46]} 47. Kd3 {[%clk 00:13:03]}
{[%emt 00:00:14]} Bg3 {[%clk 00:04:25]} {[%emt 00:00:07]} 48. Kc4 {[%clk
00:13:07]} {[%emt 00:00:13]} Bf2 {[%clk 00:04:28]} {[%emt 00:00:04]} 49. Kb5
{[%clk 00:13:06]} {[%emt 00:00:08]} Bc5 {[%clk 00:03:57]} {[%emt 00:00:37]} 50.
Nxf4 {[%clk 00:13:07]} {[%emt 00:00:30]} Be3 {[%clk 00:04:02]} 51. Nd5 {[%clk
00:12:59]} {[%emt 00:00:09]} Bf2 {[%clk 00:04:07]} 52. Nxb6 {[%clk 00:12:54]}
{[%emt 00:00:33]} Bxh4 {[%clk 00:04:15]} {[%emt 00:00:14]} 53. Kxa5 {[%clk
00:12:36]} {[%emt 00:00:05]} Be1+ {[%clk 00:04:08]} {[%emt 00:00:42]} 54. Kb5
{[%clk 00:12:27]} Kg5 {[%clk 00:04:06]} 55. a5 {[%clk 00:11:48]} {[%emt
00:00:46]} Kf4 {[%clk 00:04:05]} {[%emt 00:00:36]} 56. a6 {[%clk 00:11:30]}
{[%emt 00:00:12]} h4 {[%clk 00:04:12]} 57. a7 {[%clk 00:11:27]} {[%emt
00:00:14]} h3 {[%clk 00:04:18]} 58. a8=Q {[%clk 00:11:15]} {[%emt 00:00:35]} h2
{[%clk 00:04:21]} 59. Qh8 {[%clk 00:11:02]} {[%emt 00:00:23]} Bg3 {[%clk
00:04:06]} {[%emt 00:00:15]} 60. Nd5+ {[%clk 00:10:47]} {[%emt 00:00:25]} Kg5
{[%clk 00:03:58]} {[%emt 00:01:05]} 61. Qg7 {[%clk 00:10:49]} Kh4 {[%clk
00:03:52]} 62. Qg4+ 1-0

[Event "Kwalificatie NJK B Groningen"]
[Site "Hoogkerk, Netherlands"]
[Date "2023.02.18"]
[Round "1.8"]
[White "Zdravkovic, Andrija"]
[Black "Snijders, Take"]
[Result "0-1"]
[TimeControl "55 min. + 10 sec./zet"]
[WhiteElo "1519"]
[BlackElo "1848"]

1. e4 {[%clk 00:55:16]} c6 {[%clk 00:55:15]} {[%emt 00:00:04]} 2. d4 {[%clk
00:55:23]} d5 {[%clk 00:55:20]} {[%emt 00:00:09]} 3. exd5 {[%clk 00:55:31]}
cxd5 {[%clk 00:55:25]} {[%emt 00:00:04]} 4. Bd3 {[%clk 00:55:37]} {[%emt
00:00:04]} Nc6 {[%clk 00:54:44]} {[%emt 00:00:54]} 5. c3 {[%clk 00:55:41]} Nf6
{[%clk 00:54:35]} {[%emt 00:00:24]} 6. Bf4 {[%clk 00:55:32]} {[%emt 00:01:03]}
Bg4 {[%clk 00:52:54]} {[%emt 00:01:03]} 7. Qb3 {[%clk 00:46:58]} {[%emt
00:09:05]} Qd7 {[%clk 00:50:43]} {[%emt 00:02:07]} 8. Nd2 {[%clk 00:45:12]}
{[%emt 00:01:50]} e6 {[%clk 00:48:55]} {[%emt 00:02:23]} 9. Ngf3 {[%clk
00:41:49]} {[%emt 00:03:06]} Bd6 {[%clk 00:39:48]} {[%emt 00:10:20]} 10. Bxd6
{[%clk 00:37:35]} {[%emt 00:03:43]} Qxd6 {[%clk 00:39:56]} {[%emt 00:00:10]} 11.
Qxb7 {[%clk 00:37:32]} Rb8 {[%clk 00:35:59]} {[%emt 00:04:45]} 12. Qa6 {[%clk
00:37:34]} O-O {[%clk 00:35:17]} {[%emt 00:00:13]} 13. Bb5 {[%clk 00:35:56]}
{[%emt 00:01:38]} Rb6 {[%clk 00:32:42]} {[%emt 00:02:46]} 14. Qa4 {[%clk
00:35:57]} {[%emt 00:01:05]} Rfb8 {[%clk 00:30:55]} {[%emt 00:01:01]} 15. Bxc6
{[%clk 00:34:58]} {[%emt 00:01:15]} Rxc6 {[%clk 00:30:54]} {[%emt 00:00:06]} 16.
Qc2 {[%clk 00:33:11]} {[%emt 00:02:23]} Bf5 {[%clk 00:27:47]} {[%emt 00:02:52]}
17. Qc1 {[%clk 00:32:12]} {[%emt 00:01:08]} Rcb6 {[%clk 00:26:05]} {[%emt
00:01:52]} 18. Nb3 {[%clk 00:27:33]} {[%emt 00:04:49]} Bd3 {[%clk 00:23:04]}
{[%emt 00:03:20]} 19. Qe3 {[%clk 00:25:43]} {[%emt 00:01:55]} Bc4 {[%clk
00:20:55]} {[%emt 00:02:17]} 20. Nfd2 {[%clk 00:25:44]} {[%emt 00:00:58]} Rb5
{[%clk 00:16:32]} {[%emt 00:04:01]} 21. Nxc4 {[%clk 00:22:21]} {[%emt
00:03:21]} dxc4 {[%clk 00:16:38]} 22. Nd2 {[%clk 00:22:29]} {[%emt 00:00:18]}
Qd5 {[%clk 00:14:51]} {[%emt 00:02:11]} 23. O-O {[%clk 00:15:17]} {[%emt
00:06:56]} Rxb2 {[%clk 00:14:54]} {[%emt 00:00:09]} 24. Rab1 {[%clk 00:14:48]}
{[%emt 00:01:39]} h6 {[%clk 00:13:08]} {[%emt 00:01:06]} 25. Qe2 {[%clk
00:09:02]} {[%emt 00:06:22]} Ne4 {[%clk 00:10:59]} {[%emt 00:02:19]} 26. Qxe4
{[%clk 00:08:09]} {[%emt 00:00:17]} Qxe4 {[%emt 00:01:16]} 27. Rxb2 {[%emt
00:00:05]} Qf4 0-1

[Event "Kwalificatie NJK B Groningen"]
[Site "Hoogkerk, Netherlands"]
[Date "2023.02.18"]
[Round "1.9"]
[White "Ambrona Navarro, Himar"]
[Black "Elferink, Leon"]
[Result "1-0"]
[TimeControl "55 min. + 10 sec./zet"]
[WhiteElo "1847"]
[BlackElo "1517"]

1. d4 {[%emt 00:04:41]} Nf6 2. Bg5 {[%emt 00:00:28]} d5 3. Nd2 e6 {[%emt
00:00:38]} 4. e3 {[%emt 00:00:37]} c5 {[%emt 00:01:22]} 5. Bd3 {[%emt
00:01:19]} Nc6 {[%emt 00:00:57]} 6. c3 {[%emt 00:01:56]} Be7 {[%emt 00:02:29]}
7. Ngf3 {[%emt 00:02:00]} O-O {[%emt 00:03:15]} 8. O-O {[%emt 00:02:15]} Qc7
{[%emt 00:00:26]} 9. Qc2 {[%emt 00:05:01]} h6 {[%emt 00:05:28]} 10. Bf4 {[%emt
00:01:39]} Bd6 {[%emt 00:00:18]} 11. Bxd6 {[%emt 00:02:37]} Qxd6 12. a3 {[%emt
00:00:10]} b6 {[%emt 00:03:10]} 13. b4 {[%emt 00:01:43]} cxb4 {[%emt 00:03:21]}
14. axb4 {[%emt 00:00:10]} Bb7 {[%emt 00:01:51]} 15. Ba6 {[%emt 00:02:33]} Bxa6
{[%emt 00:01:40]} 16. Rxa6 {[%emt 00:00:44]} Rfc8 {[%emt 00:00:15]} 17. Qb3
{[%emt 00:02:45]} Rc7 {[%emt 00:02:28]} 18. Rfa1 {[%emt 00:02:11]} Rac8 {[%emt
00:00:58]} 19. b5 {[%emt 00:05:55]} Nb8 {[%emt 00:00:30]} 20. Qa3 {[%emt
00:02:17]} Qxa3 {[%emt 00:01:58]} 21. R6xa3 Rxc3 22. Rxc3 {[%emt 00:00:10]}
Rxc3 {[%emt 00:00:10]} 23. Rxa7 {[%emt 00:00:27]} Nbd7 {[%emt 00:00:10]} 24. h3
{[%emt 00:02:21]} Rc2 {[%emt 00:01:00]} 25. Nb3 {[%emt 00:04:47]} Rc4 {[%emt
00:03:07]} 26. Ne5 {[%emt 00:03:54]} Rb4 {[%emt 00:03:36]} 27. Nc5 {[%emt
00:03:56]} Nxe5 {[%emt 00:01:10]} 28. dxe5 {[%emt 00:01:13]} bxc5 29. Ra8+
{[%emt 00:00:38]} Kh7 30. exf6 {[%emt 00:00:40]} Rb1+ {[%emt 00:00:38]} 31. Kh2
{[%emt 00:01:04]} Rxb5 32. Ra7 {[%emt 00:00:55]} Kg6 {[%emt 00:00:14]} 33. fxg7
Kxg7 34. Kg3 {[%emt 00:01:29]} c4 35. Rc7 Rb2 {[%emt 00:02:17]} 36. f4 {[%emt
00:00:31]} Kf6 {[%emt 00:01:42]} 37. Kf3 {[%emt 00:00:19]} Rb1 {[%emt
00:01:20]} 38. g4 {[%emt 00:00:16]} Rc1 {[%emt 00:01:46]} 39. h4 {[%emt
00:00:22]} Rf1+ {[%emt 00:04:35]} 40. Kg2 {[%emt 00:00:44]} Rd1 {[%emt
00:00:21]} 41. Kf3 {[%emt 00:00:22]} Rd3 {[%emt 00:00:26]} 42. Ke2 {[%emt
00:01:30]} Ra3 {[%emt 00:01:07]} 43. Rc6 {[%emt 00:00:26]} c3 {[%emt 00:00:22]}
44. Kd3 {[%emt 00:00:25]} c2+ {[%emt 00:00:44]} 45. Kd2 d4 {[%emt 00:00:50]} 46.
g5+ {[%emt 00:00:50]} hxg5 {[%emt 00:00:18]} 47. fxg5+ {[%emt 00:00:33]} Kg6
{[%emt 00:00:37]} 48. exd4 {[%emt 00:00:28]} Rh3 49. d5 Rh2+ {[%emt 00:00:34]}
50. Kc1 {[%emt 00:01:07]} Kf5 51. d6 Rxh4 {[%emt 00:00:33]} 52. Rc5+ Kg6 53.
Rxc2 Rd4 {[%emt 00:00:13]} 54. Rd2 Rc4+ {[%emt 00:00:14]} 55. Kb2 Rc8 56. Kb3
{[%emt 00:00:38]} Kxg5 {[%emt 00:00:05]} 57. Kb4 Kf6 {[%emt 00:00:05]} 58. Kb5
e5 {[%emt 00:00:35]} 59. d7 {[%emt 00:00:12]} Rd8 60. Kc6 Ke7 61. Rd5 {[%emt
00:00:06]} f6 {[%emt 00:00:05]} 62. Kc7 {[%emt 00:00:29]} e4 63. Rd4 {[%emt
00:00:23]} f5 64. Rd5 Rxd7+ {[%emt 00:01:07]} 65. Rxd7 {[%emt 00:00:12]} Ke6
{[%emt 00:00:40]} 66. Kc6 {[%emt 00:00:37]} Ke5 67. Re7+ Kd4 68. Rd7+ Ke5
{[%emt 00:00:06]} 69. Kc5 Kf4 70. Kd4 {[%emt 00:00:16]} Kf3 {[%emt 00:00:05]}
71. Re7 {[%emt 00:00:08]} Kf4 {[%emt 00:00:31]} 72. Re5 Kg5 {[%emt 00:00:10]}
73. Ke3 Kg4 74. Re8 Kg5 {[%emt 00:00:04]} 75. Rg8+ {[%emt 00:00:05]} Kf6 76.
Kf4 {[%emt 00:00:08]} Ke6 {[%emt 00:00:13]} 77. Rg6+ {[%emt 00:00:20]} Kd5 78.
Rf6 {[%emt 00:00:16]} Kd4 {[%emt 00:00:35]} 79. Rxf5 e3 {[%emt 00:00:18]} 80.
Re5 {[%emt 00:00:05]} Kd5 {[%emt 00:00:19]} 1-0

[Event "Kwalificatie NJK B Groningen"]
[Site "Hoogkerk, Netherlands"]
[Date "2023.02.18"]
[Round "2.1"]
[White "Waersegers, Brent"]
[Black "Terlouw, Wouter"]
[Result "0-1"]
[TimeControl "55 min. + 10 sec./zet"]
[WhiteElo "1702"]
[BlackElo "1925"]

1. e4 {[%clk 00:55:18]} c5 {[%clk 00:55:18]} 2. Nf3 {[%clk 00:55:17]} Nc6
{[%clk 00:55:24]} {[%emt 00:00:27]} 3. c3 {[%clk 00:54:27]} {[%emt 00:00:41]}
Nf6 {[%clk 00:55:27]} 4. e5 {[%clk 00:54:07]} {[%emt 00:01:14]} Nd5 {[%clk
00:55:31]} 5. Qb3 {[%clk 00:49:27]} {[%emt 00:04:09]} e6 {[%clk 00:55:04]}
{[%emt 00:00:57]} 6. d4 {[%clk 00:46:27]} {[%emt 00:02:53]} cxd4 {[%clk
00:55:03]} {[%emt 00:00:09]} 7. cxd4 {[%clk 00:46:31]} {[%emt 00:00:37]} d6
{[%clk 00:54:49]} {[%emt 00:00:14]} 8. g3 {[%clk 00:40:44]} {[%emt 00:05:36]}
dxe5 {[%clk 00:53:53]} {[%emt 00:01:08]} 9. Nxe5 {[%clk 00:39:10]} {[%emt
00:01:42]} Bd7 {[%clk 00:53:30]} {[%emt 00:00:45]} 10. Qxb7 {[%clk 00:36:19]}
{[%emt 00:02:49]} Nxe5 {[%clk 00:52:11]} {[%emt 00:01:29]} 11. dxe5 {[%clk
00:35:59]} {[%emt 00:00:44]} Nb4 {[%clk 00:51:52]} {[%emt 00:00:20]} 12. Na3
{[%clk 00:34:18]} {[%emt 00:01:45]} Bc6 {[%clk 00:51:42]} {[%emt 00:00:52]} 13.
Bb5 {[%clk 00:34:08]} {[%emt 00:00:04]} Rc8 {[%clk 00:50:41]} {[%emt 00:01:27]}
14. Bxc6+ {[%clk 00:32:55]} {[%emt 00:00:57]} Nxc6 {[%clk 00:50:37]} {[%emt
00:00:07]} 15. O-O {[%clk 00:28:53]} {[%emt 00:04:12]} Nxe5 {[%clk 00:48:25]}
{[%emt 00:02:22]} 16. Bf4 {[%clk 00:27:39]} {[%emt 00:01:26]} Qd7 {[%clk
00:44:01]} {[%emt 00:05:00]} 17. Qb3 {[%clk 00:24:33]} {[%emt 00:02:49]} Bd6
{[%clk 00:42:27]} {[%emt 00:01:45]} 18. Rfd1 {[%clk 00:24:12]} {[%emt
00:00:29]} Qc6 {[%clk 00:40:38]} {[%emt 00:02:12]} 19. Rac1 {[%clk 00:22:22]}
{[%emt 00:01:48]} Nf3+ {[%clk 00:40:31]} {[%emt 00:00:40]} 20. Kh1 {[%clk
00:21:46]} {[%emt 00:00:22]} Bc5 {[%clk 00:40:13]} {[%emt 00:00:45]} 21. Rxc5
{[%clk 00:21:04]} {[%emt 00:00:58]} Qxc5 {[%clk 00:40:02]} {[%emt 00:00:09]} 22.
Qxf3 {[%clk 00:21:07]} Qc6 {[%clk 00:39:56]} {[%emt 00:00:11]} 23. Qxc6+ {[%clk
00:20:44]} {[%emt 00:00:41]} Rxc6 {[%clk 00:40:05]} 24. Nb5 {[%clk 00:19:51]}
{[%emt 00:01:41]} O-O {[%clk 00:39:46]} 25. Nxa7 {[%clk 00:19:25]} {[%emt
00:01:09]} Ra6 {[%clk 00:39:40]} 26. Nb5 {[%clk 00:17:26]} {[%emt 00:01:56]}
Rxa2 {[%clk 00:39:40]} 27. Be5 {[%clk 00:17:16]} {[%emt 00:00:48]} Ra5 {[%clk
00:39:30]} 28. Bd6 {[%clk 00:17:14]} {[%emt 00:00:09]} Rxb5 {[%clk 00:39:25]}
{[%emt 00:00:04]} 29. Bxf8 {[%clk 00:17:15]} {[%emt 00:00:37]} Kxf8 {[%clk
00:39:32]} 30. Rd2 {[%emt 00:00:09]} Ke7 {[%clk 00:39:31]} 31. Kg2 {[%clk
00:17:11]} e5 {[%clk 00:39:35]} {[%emt 00:00:07]} 32. Kf3 {[%clk 00:16:48]}
{[%emt 00:00:30]} f5 {[%clk 00:39:36]} {[%emt 00:00:40]} 33. Ke2 {[%emt
00:01:00]} e4 {[%clk 00:38:51]} {[%emt 00:00:16]} 34. Ke3 {[%emt 00:00:57]} g5
{[%emt 00:00:25]} 35. Kd4 {[%clk 00:15:30]} {[%emt 00:00:06]} Ke6 {[%clk
00:38:29]} {[%emt 00:00:34]} 36. Kc4 {[%clk 00:15:25]} {[%emt 00:00:10]} Rb7
{[%clk 00:37:24]} {[%emt 00:00:57]} 37. b4 {[%clk 00:13:57]} {[%emt 00:01:38]}
f4 {[%clk 00:37:25]} {[%emt 00:01:06]} 38. Kc5 {[%clk 00:12:40]} {[%emt
00:00:29]} Kf5 {[%emt 00:02:19]} 39. b5 {[%emt 00:01:06]} e3 {[%clk 00:35:46]}
{[%emt 00:00:05]} 40. fxe3 {[%clk 00:10:55]} {[%emt 00:00:54]} fxe3 {[%clk
00:35:50]} 41. Re2 {[%clk 00:10:28]} {[%emt 00:00:58]} Ke4 {[%clk 00:35:53]} 42.
Kc6 Rf7 {[%clk 00:35:19]} {[%emt 00:00:19]} 43. b6 {[%clk 00:10:27]} {[%emt
00:00:35]} Kd3 {[%clk 00:34:47]} {[%emt 00:00:24]} 44. Re1 {[%clk 00:10:20]}
{[%emt 00:01:00]} Kd2 {[%clk 00:34:19]} {[%emt 00:00:04]} 45. Rb1 {[%clk
00:09:14]} {[%emt 00:01:25]} e2 {[%clk 00:34:08]} {[%emt 00:00:09]} 46. b7
{[%clk 00:09:18]} {[%emt 00:00:05]} Rxb7 {[%clk 00:32:29]} {[%emt 00:02:14]} 47.
Kxb7 {[%clk 00:09:26]} e1=Q {[%clk 00:32:32]} 48. Rxe1 {[%clk 00:09:29]} Kxe1
{[%clk 00:32:38]} 49. Kc6 {[%clk 00:09:35]} {[%emt 00:00:10]} Kf2 {[%clk
00:32:42]} 50. Kd5 {[%clk 00:09:25]} {[%emt 00:00:13]} Kg2 {[%clk 00:32:39]}
{[%emt 00:00:45]} 51. Ke4 {[%clk 00:09:28]} Kxh2 {[%clk 00:32:34]} {[%emt
00:00:10]} 52. Kf5 {[%clk 00:09:31]} h6 {[%clk 00:32:32]} {[%emt 00:00:36]} 0-1

[Event "Kwalificatie NJK B Groningen"]
[Site "Hoogkerk, Netherlands"]
[Date "2023.02.18"]
[Round "2.2"]
[White "Van Hesselingen, Guido"]
[Black "Kleibeuker, Mika"]
[Result "0-1"]
[TimeControl "55 min. + 10 sec./zet"]
[WhiteElo "1908"]
[BlackElo "1698"]

1. e4 {[%clk 00:55:18]} {[%emt 00:00:01]} c6 {[%clk 00:55:16]} {[%emt
00:00:06]} 2. d4 {[%clk 00:55:24]} {[%emt 00:00:03]} d5 {[%clk 00:55:23]}
{[%emt 00:00:03]} 3. e5 {[%clk 00:55:30]} {[%emt 00:00:04]} Bf5 {[%clk
00:55:28]} {[%emt 00:00:05]} 4. Nf3 {[%clk 00:55:34]} {[%emt 00:00:06]} e6
{[%clk 00:55:34]} {[%emt 00:00:04]} 5. Be2 {[%clk 00:55:37]} {[%emt 00:00:07]}
Nd7 {[%clk 00:55:41]} {[%emt 00:00:03]} 6. O-O {[%clk 00:55:33]} {[%emt
00:00:14]} h6 {[%clk 00:55:48]} {[%emt 00:00:02]} 7. Nbd2 {[%clk 00:48:46]}
{[%emt 00:06:57]} Ne7 {[%emt 00:01:19]} 8. c4 {[%clk 00:46:35]} {[%emt
00:01:24]} dxc4 {[%clk 00:52:19]} {[%emt 00:03:29]} 9. Nxc4 {[%clk 00:46:38]}
{[%emt 00:00:06]} Nd5 {[%clk 00:52:24]} {[%emt 00:00:05]} 10. Ne3 {[%clk
00:45:43]} {[%emt 00:01:05]} Bg6 {[%clk 00:50:50]} {[%emt 00:01:44]} 11. Nxd5
{[%clk 00:44:27]} {[%emt 00:01:26]} cxd5 {[%clk 00:50:54]} {[%emt 00:00:06]} 12.
Qb3 {[%clk 00:39:07]} {[%emt 00:05:30]} Qb6 {[%clk 00:46:03]} {[%emt 00:05:01]}
13. Bb5 {[%clk 00:37:16]} {[%emt 00:02:01]} Qd8 {[%clk 00:39:16]} {[%emt
00:06:57]} 14. Bd2 {[%clk 00:20:38]} {[%emt 00:16:48]} Be7 {[%clk 00:36:54]}
{[%emt 00:02:32]} 15. Rac1 {[%clk 00:18:08]} {[%emt 00:02:40]} O-O {[%clk
00:36:43]} {[%emt 00:00:21]} 16. Rc3 {[%clk 00:17:03]} {[%emt 00:01:15]} a6
{[%clk 00:34:12]} {[%emt 00:02:41]} 17. Be2 {[%clk 00:16:45]} {[%emt 00:00:27]}
b5 {[%clk 00:34:19]} {[%emt 00:00:04]} 18. a4 {[%clk 00:15:11]} {[%emt
00:01:45]} b4 {[%clk 00:34:24]} {[%emt 00:00:04]} 19. Rc6 {[%clk 00:14:16]}
{[%emt 00:01:04]} Nb8 {[%clk 00:33:48]} {[%emt 00:00:47]} 20. Rcc1 {[%clk
00:13:41]} {[%emt 00:00:45]} a5 {[%clk 00:33:54]} {[%emt 00:00:05]} 21. Bb5
{[%clk 00:11:26]} {[%emt 00:02:24]} Ra7 {[%clk 00:28:54]} {[%emt 00:05:10]} 22.
Ne1 {[%clk 00:10:04]} {[%emt 00:01:31]} Qb6 {[%clk 00:27:18]} {[%emt 00:01:47]}
23. Be3 {[%clk 00:09:56]} {[%emt 00:00:18]} Rc7 {[%clk 00:26:53]} {[%emt
00:00:36]} 24. Nd3 {[%clk 00:09:16]} {[%emt 00:00:50]} Nc6 {[%clk 00:23:20]}
{[%emt 00:03:43]} 25. Nf4 {[%clk 00:04:43]} {[%emt 00:04:42]} Bf5 {[%clk
00:22:02]} {[%emt 00:01:28]} 26. Bd3 {[%clk 00:04:27]} {[%emt 00:00:27]} Bxd3
{[%clk 00:21:43]} {[%emt 00:00:29]} 27. Qxd3 {[%clk 00:03:31]} {[%emt
00:01:06]} Rfc8 {[%clk 00:20:17]} {[%emt 00:01:36]} 28. Nh5 {[%clk 00:03:20]}
{[%emt 00:00:20]} Bf8 {[%clk 00:19:35]} {[%emt 00:00:52]} 29. f4 {[%clk
00:03:19]} {[%emt 00:00:10]} Ne7 {[%clk 00:17:31]} {[%emt 00:02:15]} 30. Rxc7
{[%clk 00:02:27]} {[%emt 00:01:02]} Qxc7 {[%clk 00:17:21]} {[%emt 00:00:21]} 31.
Rc1 {[%clk 00:02:05]} {[%emt 00:00:32]} Qd7 {[%clk 00:17:17]} {[%emt 00:00:13]}
32. Rxc8 {[%clk 00:00:43]} {[%emt 00:01:33]} Qxc8 {[%clk 00:17:20]} {[%emt
00:00:07]} 33. Kf2 {[%clk 00:00:41]} {[%emt 00:00:11]} Qc4 {[%clk 00:16:58]}
{[%emt 00:00:32]} 34. Ke2 {[%clk 00:00:46]} {[%emt 00:00:05]} Nf5 {[%clk
00:15:33]} {[%emt 00:01:34]} 35. g4 {[%clk 00:00:18]} {[%emt 00:00:39]} Nxe3
{[%clk 00:15:31]} {[%emt 00:00:12]} 36. Kxe3 {[%clk 00:00:27]} {[%emt
00:00:02]} Qc1+ {[%clk 00:15:08]} {[%emt 00:00:32]} 37. Qd2 {[%clk 00:00:32]}
{[%emt 00:00:05]} Qg1+ {[%clk 00:14:41]} {[%emt 00:00:36]} 38. Kf3 {[%clk
00:00:40]} {[%emt 00:00:04]} b3 {[%clk 00:12:37]} {[%emt 00:02:14]} 39. Qxa5
{[%clk 00:00:34]} {[%emt 00:00:15]} Qxd4 {[%clk 00:12:39]} {[%emt 00:00:08]} 40.
Qb5 {[%clk 00:00:11]} {[%emt 00:00:33]} Qxb2 {[%clk 00:12:39]} {[%emt
00:00:10]} 41. a5 {[%clk 00:00:20]} Qc3+ {[%clk 00:12:35]} {[%emt 00:00:14]} 42.
Kf2 {[%clk 00:00:13]} {[%emt 00:00:17]} b2 {[%clk 00:12:29]} {[%emt 00:00:16]}
0-1